bitfinex/quotes_SOLUSD_20240905
["timestamp","ask_amount","ask_price","bid_price","bid_amount"]
[1725511929044,7.4434,134.35,134.31,7.4452]
[1725511929636,7.4427,134.36,134.3,18.614]
[1725511929837,6.2864,134.42,134.32,18.6115]
[1725511930547,6.2864,134.42,134.34,7.4435]
[1725511930548,7.4414,134.39,134.34,7.4435]
[1725511930755,7.4416,134.38,134.33,7.4441]
[1725511930957,7.4411,134.39,134.34,7.4437]
[1725511931332,6.2864,134.42,134.35,7.4431]
[1725511931333,7.4406,134.4,134.35,7.4431]
[1725511932255,7.44,134.41,134.36,7.4426]
[1725511932562,6.3374,134.46,134.36,18.6058]
[1725511933651,20.0,134.45,134.36,18.6058]
[1725511933858,7.4399,134.41,134.36,26.0483]
[1725511934535,7.4394,134.42,134.37,7.4416]
[1725511934735,20.0,134.45,134.37,7.4416]
[1725511934949,7.4394,134.42,134.37,7.4416]
[1725511936154,7.4417,134.38,134.33,26.0544]
[1725511936354,20.0,134.46,134.33,26.0544]
[1725511936355,70.0,134.46,134.33,18.6103]
[1725511936558,45.0,134.45,134.33,18.6103]
[1725511936855,7.4421,134.37,134.33,18.6103]
[1725511937056,6.3374,134.43,134.31,22.3111]
[1725511937239,16.0357,134.4,134.28,6.3671]
[1725511937437,20.0,134.39,134.28,6.3671]
[1725511937636,7.4444,134.33,134.28,13.8137]
[1725511937949,7.4454,134.31,134.28,6.3671]
[1725511938256,65.0,134.39,134.28,6.3671]
[1725511941641,50.0,134.38,134.28,6.3671]
[1725511941854,65.0,134.37,134.28,6.3671]
[1725511942154,45.0,134.36,134.28,6.3671]
[1725511942361,20.0,134.35,134.28,6.3671]
[1725511944457,20.0,134.39,134.28,6.3671]
[1725511945436,45.0,134.38,134.28,6.3671]
[1725511945640,20.0,134.37,134.28,6.3671]
[1725511945862,45.0,134.36,134.28,6.3671]
[1725511946062,20.0,134.35,134.28,6.3671]
[1725511946259,7.4458,134.31,134.28,6.3671]
[1725511946559,7.4464,134.3,134.28,6.3671]
[1725511947067,7.4467,134.29,134.25,24.8586]
[1725511947238,7.4473,134.28,134.25,6.2375]
[1725511947769,7.4476,134.27,134.25,6.2375]
[1725511948147,20.0,134.35,134.25,6.2375]
[1725511948148,7.4471,134.28,134.25,6.2375]
[1725511948862,7.4477,134.27,134.25,6.2375]
[1725511949669,16.6209,134.31,134.2,22.5348582]
[1725511949965,65.0,134.3,134.2,22.5348582]
[1725511950748,7.4503,134.23,134.2,7.5071582]
[1725511950948,6.4603,134.29,134.2,0.8634582]
[1725511950949,7.4505,134.22,134.2,0.8634582]
[1725511951266,6.4603,134.29,134.2,0.8634582]
[1725511951470,7.451,134.21,134.2,0.8634582]
[1725511952066,27.451,134.21,134.2,0.8634582]
[1725511953254,23.97694632,134.32,134.2,16.1076582]
[1725511953442,22.6776,134.32,134.22,7.4503]
[1725511953648,22.6776,134.32,134.22,6.3096]
[1725511955571,22.6776,134.32,134.22,13.7598]
[1725511955963,22.6776,134.32,134.22,6.3096]
[1725511956868,65.0,134.31,134.22,6.3096]
[1725511958466,7.4489,134.25,134.22,6.3096]
[1725511959170,7.4489,134.25,134.2,23.5589582]
[1725511959171,7.4505,134.22,134.2,0.8634582]
[1725511959357,7.451,134.21,134.2,0.8634582]
[1725511959670,27.451,134.21,134.2,0.8634582]
[1725511961279,27.451,134.21,134.16,6.5927]
[1725511961280,20.0,134.21,134.16,6.5927]
[1725511961454,20.0,134.21,134.14,15.0473]
[1725511961768,7.4521,134.19,134.15,7.4542]
[1725511962167,7.4516,134.2,134.15,7.4542]
[1725511963171,7.4522,134.19,134.15,7.4542]
[1725511963556,7.4522,134.19,134.14,22.502]
[1725511963965,7.4505,134.22,134.17,7.453]
[1725511964175,20.0,134.21,134.17,7.453]
[1725511964476,7.45,134.23,134.18,15.39575325]
[1725511964873,7.45,134.23,134.19,7.4519]
[1725511965879,15.4527,134.29,134.19,7.4519]
[1725511965880,7.4494,134.24,134.19,7.4519]
[1725511966094,7.4494,134.24,134.2,7.4514]
[1725511966256,7.4488,134.25,134.2,7.4514]
[1725511966879,7.4931,134.27,134.21,15.7276]
[1725511967169,7.4488,134.25,134.21,15.7276]
[1725511967379,7.4494,134.24,134.21,15.7276]
[1725511967556,7.4502,134.23,134.21,15.7276]
[1725511967756,7.4494,134.24,134.21,15.7276]
[1725511968179,7.4488,134.25,134.21,23.1785]
[1725511969079,7.4488,134.25,134.21,15.7276]
[1725511970979,7.4495,134.24,134.21,15.7276]
[1725511972963,7.4489,134.25,134.21,15.7276]
[1725511973165,0.045,134.27,134.22,7.4503]
[1725511973483,7.4928,134.27,134.23,7.4496]
[1725511974983,7.4928,134.27,134.21,15.7276]
[1725511974984,7.4489,134.25,134.21,23.1783]
[1725511979983,7.4493,134.24,134.21,15.7276]
[1725511980165,7.4493,134.24,134.2,7.4514]
[1725511980891,7.4501,134.23,134.19,18.6296]
[1725511981400,7.451,134.21,134.18,21.9925]
[1725511982300,21.2797,134.27,134.15,48.0625]
[1725511982508,7.453,134.18,134.15,21.9736]
[1725511982679,50.0,134.24,134.12,48.5491]
[1725511982886,7.4538,134.16,134.12,41.0933]
[1725511983400,20.0,134.23,134.12,48.5492]
[1725511983401,7.4532,134.17,134.12,48.5492]
[1725511985496,7.4527,134.18,134.13,7.4554]
[1725511986481,7.4522,134.19,134.14,7.4548]
[1725511986688,20.0,134.18,134.14,7.4548]
[1725511986893,20.0,134.23,134.14,18.6361]
[1725511987279,20.0,134.26,134.14,18.6361]
[1725511987997,7.4521,134.19,134.15,7.4542]
[1725511988196,7.4521,134.19,134.14,18.6361]
[1725511988801,7.4515,134.21,134.16,7.4536]
[1725511989181,50.0,134.26,134.15,7.4543]
[1725511989378,45.0,134.25,134.15,0.46085916]
[1725511989597,7.4509,134.22,134.17,7.4531]
[1725511989988,27.451,134.21,134.17,7.4531]
[1725511992601,7.452,134.2,134.14,18.6361]
[1725511992897,7.452,134.2,134.15,8.94486406]
[1725511993100,7.452,134.2,134.15,7.4542]
[1725511995407,20.0,134.21,134.15,7.4542]
[1725511995608,20.0,134.25,134.15,7.4542]
[1725511995806,20.0,134.25,134.14,18.6361]
[1725511995807,45.0,134.24,134.14,26.0908]
[1725511996106,20.0,134.23,134.14,26.0908]
[1725511997412,20.0,134.23,134.15,7.4542]
[1725511998207,20.0,134.23,134.12,22.4539]
[1725511998409,45.0,134.22,134.12,22.4539]
[1725511998590,20.0,134.21,134.12,22.4539]
[1725511998788,45.0,134.2,134.13,7.4554]
[1725511998997,20.0,134.21,134.14,7.4548]
[1725511999306,45.0,134.22,134.15,7.4542]
[1725511999518,45.0,134.22,134.13,18.6379]
[1725511999804,45.0,134.22,134.14,7.4544]
[1725512000188,45.0,134.22,134.15,7.4542]
[1725512000800,20.0,134.21,134.15,7.4542]
[1725512001808,20.0,134.25,134.15,7.4542]
[1725512001990,24.50408762,134.27,134.16,1.49058935]
[1725512002498,24.50408762,134.27,134.2,7.4514]
[1725512002499,7.4489,134.25,134.2,7.4514]
[1725512002704,15.1376,134.27,134.21,20.11666467]
[1725512003007,7.4487,134.26,134.21,27.56756467]
[1725512003207,7.4488,134.25,134.21,18.6267]
[1725512003504,27.4498,134.24,134.19,7.4521]
[1725512003707,27.4498,134.24,134.18,34.8092]
[1725512003708,7.4505,134.22,134.18,16.178]
[1725512004293,27.4498,134.24,134.18,25.11931529]
[1725512004492,27.4498,134.24,134.18,23.6301]
[1725512004711,7.4501,134.23,134.18,23.6301]
[1725512005707,7.4504,134.22,134.18,16.178]
[1725512006796,20.0,134.24,134.18,16.178]
[1725512007109,20.0,134.26,134.17,6.5034]
[1725512007303,45.0,134.25,134.17,6.5034]
[1725512007485,7.4525,134.19,134.15,15.0678]
[1725512008007,6.5973,134.22,134.13,6.3222]
[1725512008211,65.0,134.21,134.14,1.49091878]
[1725512008703,65.0,134.21,134.13,6.3222]
[1725512009419,65.0,134.21,134.1,22.0647]
[1725512009592,7.455,134.14,134.1,22.0647]
[1725512009913,7.4544,134.15,134.1,22.0647]
[1725512010211,7.4544,134.15,134.1,29.5216]
[1725512010409,15.7485,134.2,134.11,1.49103709]
[1725512010615,7.4536,134.17,134.12,7.456]
[1725512010809,20.0,134.16,134.13,1.49081476]
[1725512011411,7.4539,134.16,134.13,1.49081476]
[1725512011609,7.4539,134.16,134.11,7.4565]
[1725512012518,7.4539,134.16,134.12,1.49087097]
[1725512013111,7.4539,134.16,134.11,7.4565]
[1725512013510,7.4533,134.17,134.12,27.58510261]
[1725512013816,6.5973,134.22,134.12,18.6388]
[1725512014710,20.0,134.21,134.12,18.6388]
[1725512015009,7.453,134.18,134.13,7.4554]
[1725512015424,7.4522,134.19,134.14,7.4548]
[1725512015593,20.0,134.18,134.14,7.4548]
[1725512015788,7.4522,134.19,134.14,7.4548]
[1725512017905,7.4528,134.18,134.13,7.4552]
[1725512018097,7.4521,134.19,134.14,7.4548]
[1725512019522,7.4528,134.18,134.14,7.4548]
[1725512019699,7.4522,134.19,134.15,1.4906619]
[1725512020020,20.0,134.21,134.12,18.6388]
[1725512020210,20.0,134.22,134.1,22.0647]
[1725512020416,45.0,134.21,134.11,30.0]
[1725512020621,20.0,134.2,134.11,37.4563]
[1725512020919,7.4538,134.16,134.12,7.4558]
[1725512021113,27.4516,134.2,134.11,30.0]
[1725512021323,7.451,134.21,134.16,7.4537]
[1725512021506,15.7669,134.23,134.16,7.4537]
[1725512021507,7.4516,134.2,134.16,7.4537]
[1725512022719,3.26936443,134.25,134.16,7.4537]
[1725512022924,15.9127,134.27,134.17,18.6322]
[1725512023098,19.11893985,134.27,134.18,1.49018662]
[1725512023298,19.11893985,134.27,134.19,8.94218184]
[1725512023523,19.11893985,134.27,134.21,7.451]
[1725512023822,15.9127,134.27,134.2,18.6288]
[1725512024116,15.9127,134.27,134.19,7.452]
[1725512024337,20.0,134.26,134.19,7.452]
[1725512025319,7.4499,134.23,134.19,7.452]
[1725512025999,7.4499,134.23,134.18,7.4525]
[1725512026403,7.4506,134.22,134.18,7.4525]
[1725512026619,50.0,134.25,134.11,52.7944]
[1725512026918,50.0,134.25,134.13,7.4554]
[1725512026919,7.4528,134.18,134.13,7.4554]
[1725512027423,7.4528,134.18,134.14,1.49071378]
[1725512027721,7.4539,134.16,134.12,18.6391]
[1725512027928,7.4544,134.15,134.11,22.7944]
[1725512028422,7.455,134.14,134.11,22.7944]
[1725512028795,7.4543,134.15,134.11,22.7944]
[1725512029002,7.4543,134.15,134.12,1.4908601]
[1725512029200,7.4543,134.15,134.11,30.2508]
[1725512030709,7.4539,134.16,134.11,30.2508]
[1725512030921,7.4533,134.17,134.12,7.4557]
[1725512031128,20.0,134.16,134.12,7.4557]
[1725512032016,22.6817,134.23,134.13,18.6379]
[1725512032411,22.6817,134.23,134.13,26.0932]
[1725512032616,22.6817,134.23,134.13,18.6379]
[1725512033805,20.0,134.22,134.13,18.6379]
[1725512034033,22.6817,134.23,134.14,8.94539131]
[1725512034217,22.6817,134.23,134.15,1.49046308]
[1725512034514,22.6817,134.23,134.14,7.4548]
[1725512034910,16.3864,134.23,134.15,1.49046268]
[1725512035123,21.7973,134.26,134.18,7.4521]
[1725512035846,21.7973,134.26,134.17,32.2107]
[1725512036419,20.0,134.25,134.17,32.2107]
[1725512037227,20.0,134.25,134.18,8.94151771]
[1725512037428,20.0,134.25,134.18,1.48901771]
[1725512037802,20.0,134.25,134.17,32.2108]
[1725512038616,20.0,134.25,134.18,7.4522]
[1725512038815,20.0,134.25,134.14,18.6369]
[1725512039019,7.4533,134.17,134.13,6.4715]
[1725512040315,45.0,134.24,134.13,6.4715]
[1725512040518,7.4548,134.15,134.11,34.7784]
[1725512041310,7.4533,134.17,134.12,7.4558]
[1725512043440,7.4536,134.17,134.12,7.4558]
[1725512044835,21.7973,134.26,134.13,18.6375]
[1725512045039,7.452,134.2,134.15,7.4543]
[1725512045409,7.4522,134.19,134.15,7.4543]
[1725512045610,7.4519,134.2,134.15,7.4543]
[1725512046539,25.06513318,134.26,134.14,7.4548]
[1725512046743,7.4525,134.19,134.14,7.4548]
[1725512049019,7.4528,134.18,134.14,7.4548]
[1725512049220,7.4528,134.18,134.13,26.0929]
[1725512050435,7.4528,134.18,134.14,7.4547]
[1725512050625,25.06513318,134.26,134.15,7.4542]
[1725512050626,7.4516,134.2,134.15,7.4542]
[1725512050831,7.4524,134.19,134.14,7.4544]
[1725512051731,7.4516,134.2,134.15,18.6353]
[1725512052239,7.451,134.21,134.16,7.4533]
[1725512052737,25.06513318,134.26,134.17,18.6325]
[1725512052738,7.4505,134.22,134.17,18.6325]
[1725512053642,0.045,134.27,134.19,18.6295]
[1725512053820,0.045,134.27,134.18,59.0352]
[1725512054024,0.045,134.27,134.18,21.7724]
[1725512054424,7.4488,134.25,134.2,26.0796]
[1725512054621,7.4483,134.26,134.21,7.4509]
[1725512054938,7.4483,134.26,134.21,7.4508]
[1725512055628,7.4483,134.26,134.22,7.4503]
[1725512055835,0.045,134.27,134.22,7.4503]
[1725512055836,0.045,134.27,134.22,48.6252]
[1725512056854,0.045,134.27,134.24,7.4489]
[1725512058725,0.045,134.27,134.24,25.0609]
[1725512058931,0.045,134.27,134.26,7.4482]
[1725512064126,0.045,134.27,134.26,82.4482]
[1725512064734,0.045,134.27,134.26,37.4482]
[1725512065141,0.045,134.27,134.26,7.4482]
[1725512069247,0.045,134.27,134.26,52.4482]
[1725512069454,0.045,134.27,134.26,82.4482]
[1725512071757,0.045,134.27,134.26,109.69628948]
[1725512071937,0.045,134.27,134.26,132.12628948]
[1725512073841,0.045,134.27,134.26,176.97628948]
[1725512075370,7.4422,134.37,134.3,18.6141]
[1725512075562,7.4422,134.37,134.3,48.6141]
[1725512075852,7.4422,134.37,134.33,7.4443]
[1725512078660,7.4422,134.37,134.32,26.0563]
[1725512080550,15.6915,134.4,134.32,26.0563]
[1725512080551,7.4432,134.35,134.32,18.6116]
[1725512080752,7.4432,134.35,134.3,30.0]
[1725512080753,7.4438,134.34,134.3,37.4459]
[1725512080958,7.4438,134.34,134.31,30.0]
[1725512081850,7.4438,134.34,134.29,26.0619]
[1725512082357,7.4444,134.33,134.29,26.0619]
[1725512082563,7.4439,134.34,134.3,7.4458]
[1725512083844,7.4439,134.34,134.29,26.062]
[1725512084647,15.6915,134.4,134.26,32.86785574]
[1725512084648,7.4449,134.32,134.27,7.4472]
[1725512084848,7.4445,134.33,134.28,37.4466]
[1725512085062,7.4445,134.33,134.29,7.4464]
[1725512085560,7.4439,134.34,134.29,7.4464]
[1725512086463,7.4439,134.34,134.3,7.4458]
[1725512088556,7.4432,134.35,134.31,7.4453]
[1725512088872,7.4422,134.37,134.32,7.4447]
[1725512090160,7.4416,134.38,134.33,7.4443]
[1725512090864,15.6915,134.4,134.36,7.4422]
[1725512091068,15.6915,134.4,134.35,18.6069]
[1725512091451,7.4414,134.39,134.35,18.6069]
[1725512091645,7.4415,134.38,134.34,7.4436]
[1725512091855,7.4411,134.39,134.34,7.4436]
[1725512093355,7.4416,134.38,134.34,7.4436]
[1725512093570,7.4416,134.38,134.32,41.0428]
[1725512093571,7.4416,134.38,134.33,7.4441]
[1725512093872,7.4416,134.38,134.34,7.4437]
[1725512098375,7.4411,134.39,134.35,7.4432]
[1725512099166,15.2438,134.43,134.34,18.609]
[1725512099346,15.2438,134.43,134.35,45.0]
[1725512100476,7.4411,134.39,134.34,18.609]
[1725512100665,7.4421,134.37,134.35,30.0]
[1725512100877,15.2438,134.43,134.35,30.0]
[1725512101171,9.83900462,134.44,134.29,15.1345]
[1725512101172,22.1482,134.41,134.29,15.1345]
[1725512101365,7.4434,134.35,134.3,7.4455]
[1725512101572,7.4434,134.35,134.31,30.0]
[1725512101944,7.4434,134.35,134.3,7.4455]
[1725512102245,7.4434,134.35,134.31,7.4453]
[1725512102449,7.4428,134.36,134.31,7.4453]
[1725512102663,20.0,134.4,134.34,7.4432]
[1725512102855,7.4409,134.4,134.29,64.73681328]
[1725512103068,7.4409,134.4,134.3,30.0]
[1725512103270,22.1482,134.41,134.36,7.4425]
[1725512103271,29.5883,134.41,134.36,7.4425]
[1725512103576,22.1482,134.41,134.37,0.7409504]
[1725512104146,29.5882,134.41,134.36,7.4425]
[1725512104350,29.5882,134.41,134.35,18.6074]
[1725512104351,23.2733,134.41,134.37,7.442]
[1725512105483,7.4405,134.4,134.35,18.6074]
[1725512105771,7.4405,134.4,134.35,26.0505]
[1725512105965,15.8333,134.41,134.32,55.8357]
[1725512106156,20.0,134.4,134.32,18.6114]
[1725512106350,20.0,134.4,134.33,7.4439]
[1725512107163,20.0,134.4,134.34,7.4437]
[1725512109164,20.0,134.4,134.35,7.4431]
[1725512110977,20.0,134.4,134.34,7.4436]
[1725512113679,20.0,134.4,134.33,7.4442]
[1725512117160,6.6094,134.39,134.32,26.0561]
[1725512118054,6.6094,134.39,134.31,7.4453]
[1725512118363,7.4436,134.35,134.3,37.4455]
[1725512118664,20.0,134.38,134.33,7.4438]
[1725512118992,7.442,134.38,134.33,26.0546]
[1725512119166,7.4422,134.37,134.33,18.6104]
[1725512120078,7.4438,134.34,134.3,48.6142]
[1725512120277,7.4438,134.34,134.3,56.0601]
[1725512120464,15.1362,134.38,134.3,30.0]
[1725512120663,7.4444,134.33,134.28,7.4469]
[1725512121476,7.445,134.32,134.28,7.4469]
[1725512122085,7.4444,134.33,134.28,7.4469]
[1725512122482,22.932,134.32,134.27,7.4475]
[1725512122998,15.4867,134.32,134.28,7.447]
[1725512124195,7.4444,134.33,134.29,7.4465]
[1725512124788,7.4439,134.34,134.29,7.4465]
[1725512125000,15.8842,134.35,134.27,30.0]
[1725512125302,15.8842,134.35,134.32,7.4448]
[1725512125904,7.4422,134.37,134.32,7.4448]
[1725512126986,15.693,134.39,134.33,45.0]
[1725512127191,15.693,134.39,134.35,7.4431]
[1725512128309,23.1341,134.39,134.35,7.4431]
[1725512130003,23.1341,134.39,134.34,26.0524]
[1725512130603,7.4416,134.38,134.34,18.6087]
[1725512130904,7.4421,134.37,134.32,7.4448]
[1725512131088,23.1344,134.39,134.34,7.4437]
[1725512131789,7.4417,134.38,134.33,56.0542]
[1725512131992,23.1341,134.39,134.34,7.4435]
[1725512135691,7.442,134.38,134.33,56.0543]
[1725512135895,22.6186,134.46,134.4,7.44]
[1725512136096,30.0562,134.46,134.41,7.4398]
[1725512136505,16.3152,134.46,134.41,18.5989]
[1725512136699,23.7508,134.49,134.44,7.4381]
[1725512137005,7.436,134.48,134.43,18.5961]
[1725512137201,23.7508,134.49,134.44,7.4379]
[1725512137402,16.3152,134.49,134.45,7.4376]
[1725512137601,7.4343,134.52,134.46,7.437]
[1725512137804,23.4820582,134.53,134.46,7.437]
[1725512137805,7.4345,134.51,134.46,7.437]
[1725512138202,30.9157582,134.53,134.45,18.593]
[1725512138404,30.9157582,134.53,134.47,7.4361]
[1725512139101,23.4820582,134.53,134.48,7.4355]
[1725512139507,23.4820582,134.53,134.47,18.5903]
[1725512139718,7.4345,134.51,134.47,18.5903]
[1725512141201,27.434,134.52,134.47,18.5903]
[1725512141521,20.0,134.52,134.47,18.5903]
[1725512141819,24.6119582,134.53,134.47,18.5903]
[1725512142608,0.8634582,134.53,134.49,7.4353]
[1725512143008,0.8634582,134.53,134.5,7.4348]
[1725512143198,0.8634582,134.53,134.5,18.5873]
[1725512144302,0.8634582,134.53,134.52,7.4338]
[1725512144505,0.8634582,134.53,134.52,52.4338]
[1725512144704,0.8634582,134.53,134.52,7.4338]
[1725512147107,0.8634582,134.53,134.51,7.4343]
[1725512147426,0.8634582,134.53,134.5,26.0221]
[1725512147599,0.8634582,134.53,134.51,7.4343]
[1725512148526,0.8634582,134.53,134.5,18.5873]
[1725512149021,0.8634582,134.53,134.5,26.0219]
[1725512149615,0.8634582,134.53,134.52,7.4338]
[1725512150902,0.8634582,134.53,134.51,7.4343]
[1725512151108,0.8634582,134.53,134.5,26.0221]
[1725512151302,0.8634582,134.53,134.51,7.4343]
[1725512151718,0.8634582,134.53,134.52,7.4338]
[1725512153800,0.8634582,134.53,134.52,37.4338]
[1725512155306,0.8634582,134.53,134.52,7.4338]
[1725512155514,0.8634582,134.53,134.5,18.5873]
[1725512156028,0.8634582,134.53,134.51,7.4339]
[1725512158022,0.8634582,134.53,134.52,7.4338]
[1725512159223,0.8634582,134.53,134.52,37.4338]
[1725512163116,0.8634582,134.53,134.52,36.9338]
[1725512164012,0.8634582,134.53,134.52,81.9338]
[1725512166317,0.8634582,134.53,134.52,81.4338]
[1725512167932,0.8634582,134.53,134.52,103.8638]
[1725512168114,0.8634582,134.53,134.52,130.021]
[1725512168430,0.40283354,134.57,134.56,26.0106]
[1725512168628,0.40283354,134.57,134.56,71.0106]
[1725512168928,0.40283354,134.57,134.56,70.0106]
[1725512169134,0.40283354,134.57,134.56,100.0106]
[1725512169306,0.40283354,134.57,134.56,55.0106]
[1725512169933,0.40283354,134.57,134.53,18.5828]
[1725512170456,0.40283354,134.57,134.56,7.4316]
[1725512170816,0.40283354,134.57,134.56,6.4316]
[1725512173021,0.40283354,134.57,134.56,36.4316]
[1725512177925,7.4245,134.69,134.58,59.5817]
[1725512178239,7.4245,134.69,134.63,25.9964]
[1725512178632,7.4253,134.68,134.63,25.9964]
[1725512179442,7.4253,134.68,134.64,7.4271]
[1725512179833,7.4246,134.69,134.64,7.4271]
[1725512180730,6.4727,134.7,134.63,48.5687]
[1725512181034,7.4272,134.64,134.63,30.0]
[1725512181542,33.44,134.64,134.63,30.0]
[1725512181936,33.44,134.64,134.57,26.0079]
[1725512181937,7.4289,134.61,134.57,26.0079]
[1725512182145,7.4289,134.61,134.57,18.5773]
[1725512182441,7.4295,134.6,134.55,7.4321]
[1725512183147,7.4295,134.6,134.56,30.0]
[1725512183440,7.4295,134.6,134.56,37.4316]
[1725512183641,7.4289,134.61,134.56,37.4316]
[1725512184620,7.4282,134.63,134.58,7.4303]
[1725512185532,6.0128,134.64,134.58,7.4303]
[1725512185922,6.0128,134.64,134.57,7.4309]
[1725512186142,6.0128,134.64,134.58,30.0]
[1725512187350,6.0128,134.64,134.58,37.4301]
[1725512187821,6.0128,134.64,134.58,30.0]
[1725512188028,6.0128,134.64,134.57,7.4309]
[1725512189243,7.4285,134.62,134.57,7.4309]
[1725512190552,7.4294,134.6,134.56,18.5782]
[1725512190840,16.1803582,134.66,134.51,15.95148791]
[1725512190841,23.0381,134.58,134.51,15.95148791]
[1725512191044,7.4317,134.56,134.53,30.0]
[1725512191634,7.4317,134.56,134.52,7.4337]
[1725512192250,7.4317,134.56,134.51,7.4342]
[1725512193254,7.4322,134.55,134.51,7.4342]
[1725512193441,7.4322,134.55,134.5,18.5867]
[1725512193633,7.4322,134.55,134.5,26.0214]
[1725512194928,23.0381,134.58,134.47,18.591]
[1725512195132,20.0,134.57,134.48,30.0]
[1725512195456,7.4344,134.51,134.47,26.0275]
[1725512195848,7.4337,134.53,134.48,7.436]
[1725512196647,20.0,134.57,134.47,18.591]
[1725512196648,7.4348,134.51,134.47,18.591]
[1725512196945,16.2939,134.51,134.45,5.10150555]
[1725512197150,20.0,134.5,134.45,5.10150555]
[1725512198235,7.4366,134.47,134.45,5.10150555]
[1725512198945,7.436,134.48,134.45,5.10150555]
[1725512199456,7.4356,134.49,134.45,5.10150555]
[1725512200534,27.4349,134.5,134.45,12.53900555]
[1725512200735,23.7287,134.51,134.46,7.4369]
[1725512201454,16.2939,134.51,134.46,7.4369]
[1725512202971,16.2939,134.51,134.43,18.5958]
[1725512203159,20.0,134.5,134.43,18.5958]
[1725512204432,20.0,134.5,134.4,18.6008]
[1725512204628,20.0,134.5,134.41,30.0]
[1725512204845,20.0,134.5,134.42,7.4393]
[1725512205659,20.0,134.5,134.43,7.4387]
[1725512206158,20.0,134.5,134.43,7.4086]
[1725512207338,20.0,134.5,134.41,30.0]
[1725512207339,7.4364,134.48,134.44,7.4381]
[1725512207535,7.4356,134.49,134.44,7.4381]
[1725512207840,20.0,134.48,134.44,7.4381]
[1725512209261,20.0,134.48,134.42,18.5973]
[1725512209262,20.0,134.48,134.43,7.4387]
[1725512209463,20.0,134.5,134.43,7.4387]
[1725512210548,20.0,134.5,134.44,7.4382]
[1725512211253,16.2939,134.51,134.44,18.5949]
[1725512211454,16.2939,134.51,134.46,7.4367]
[1725512214351,7.435,134.5,134.45,7.4376]
[1725512214668,16.2939,134.51,134.44,26.033]
[1725512214669,7.4356,134.49,134.44,26.033]
[1725512217643,7.4356,134.49,134.45,7.4377]
[1725512220045,7.4349,134.5,134.45,7.4377]
[1725512220568,7.4349,134.5,134.46,0.75566138]
[1725512220945,16.2939,134.51,134.47,7.4365]
[1725512220946,23.7284,134.51,134.47,7.4365]
[1725512223769,16.2939,134.51,134.44,18.5949]
[1725512223972,7.4371,134.46,134.45,30.0]
[1725512224141,7.4371,134.46,134.41,26.0387]
[1725512224473,7.4361,134.48,134.43,18.5964]
[1725512225357,7.4361,134.48,134.44,7.4381]
[1725512225553,7.4361,134.48,134.43,26.035]
[1725512227064,7.4356,134.49,134.45,7.4376]
[1725512227457,7.4356,134.49,134.44,7.4381]
[1725512228564,7.4356,134.49,134.45,7.4376]
[1725512229170,7.4356,134.49,134.46,0.57374718]
[1725512229469,7.4356,134.49,134.45,7.4376]
[1725512231275,27.435,134.5,134.46,7.437]
[1725512231461,20.0,134.5,134.43,18.5964]
[1725512231661,20.0,134.5,134.44,30.0]
[1725512232266,7.4355,134.49,134.45,7.4375]
[1725512234074,7.4355,134.49,134.44,37.4381]
[1725512234273,7.4355,134.49,134.44,7.4381]
[1725512236474,7.4382,134.44,134.4,27.92636708]
[1725512236680,7.4382,134.44,134.43,30.0]